bitfinex/quotes_BTCUSD_20250916
["timestamp","ask_amount","ask_price","bid_price","bid_amount"]
[1758034870229,0.60812441,115380.0,115370.0,0.00014]
[1758034870459,0.69462586,115380.0,115370.0,0.00014]
[1758034870670,0.60812441,115380.0,115370.0,0.00014]
[1758034870878,0.97559612,115380.0,115370.0,0.00014]
[1758034872551,0.60812441,115380.0,115370.0,0.00014]
[1758034872764,0.33680441,115380.0,115370.0,0.00014]
[1758034872977,0.97563612,115380.0,115370.0,0.00014]
[1758034873591,0.60816441,115380.0,115370.0,0.00014]
[1758034873793,0.97563612,115380.0,115370.0,0.00014]
[1758034879569,0.97564241,115380.0,115370.0,0.00014]
[1758034880291,0.99183996,115380.0,115370.0,0.00014]
[1758034884708,1.32499996,115380.0,115370.0,0.00014]
[1758034884923,1.66499996,115380.0,115370.0,0.00014]
[1758034885355,1.75150141,115380.0,115370.0,4e-05]
[1758034885588,1.80150141,115380.0,115370.0,4e-05]
[1758034885824,1.80050141,115380.0,115370.0,4e-05]
[1758034886029,1.79950141,115380.0,115370.0,4e-05]
[1758034886225,1.89479141,115380.0,115370.0,4e-05]
[1758034886431,1.80350141,115380.0,115370.0,4e-05]
[1758034886647,1.80150141,115380.0,115370.0,4e-05]
[1758034886849,1.80350141,115380.0,115370.0,4e-05]
[1758034887274,1.82647076,115380.0,115370.0,4e-05]
[1758034887680,1.82447076,115380.0,115370.0,4e-05]
[1758034888133,1.82647076,115380.0,115370.0,4e-05]
[1758034889193,1.45899905,115380.0,115370.0,4e-05]
[1758034889413,1.82647076,115380.0,115370.0,4e-05]
[1758034889649,1.45899905,115380.0,115370.0,4e-05]
[1758034889856,1.82039842,115380.0,115370.0,4e-05]
[1758034890062,1.82648811,115380.0,115370.0,4e-05]
[1758034891287,1.82672811,115380.0,115370.0,4e-05]
[1758034891496,1.85375876,115380.0,115370.0,4e-05]
[1758034892555,1.85175876,115380.0,115370.0,4e-05]
[1758034892766,1.84975876,115380.0,115370.0,4e-05]
[1758034892941,1.58015876,115380.0,115370.0,4e-05]
[1758034893152,1.85471876,115380.0,115370.0,4e-05]
[1758034893359,1.94122021,115380.0,115370.0,4e-05]
[1758034893935,1.85459209,115380.0,115370.0,4e-05]
[1758034894113,1.58307209,115380.0,115370.0,4e-05]
[1758034894327,1.21560038,115380.0,115370.0,4e-05]
[1758034894546,1.85459209,115380.0,115370.0,4e-05]
[1758034895172,1.58307209,115380.0,115370.0,4e-05]
[1758034895390,1.85459209,115380.0,115370.0,4e-05]
[1758034895602,1.58307209,115380.0,115370.0,4e-05]
[1758034895809,1.85469352,115380.0,115370.0,4e-05]
[1758034896227,1.85469348,115380.0,115370.0,4e-05]
[1758034896700,2.31345519,115380.0,115370.0,4e-05]
[1758034896954,0.73479719,115370.0,115360.0,4e-05]
[1758034897197,1.60233778,115370.0,115360.0,4e-05]
[1758034897418,1.59458069,115370.0,115360.0,4e-05]
[1758034897655,1.86626069,115370.0,115360.0,4e-05]
[1758034897886,1.9788207,115370.0,115360.0,4e-05]
[1758034898331,1.7071407,115370.0,115360.0,4e-05]
[1758034898799,1.9787807,115370.0,115360.0,4e-05]
[1758034899031,1.24583728,115370.0,115360.0,1e-08]
[1758034899805,0.9741717,115370.0,115360.0,1e-08]
[1758034900027,1.2458117,115370.0,115360.0,1e-08]
[1758034900267,1.98075328,115370.0,115360.0,1e-08]
[1758034904101,1.98071328,115370.0,115360.0,1e-08]
[1758034905575,1.97871328,115370.0,115360.0,1e-08]
[1758034905792,1.98271328,115370.0,115360.0,1e-08]
[1758034906006,1.24776986,115370.0,115360.0,1e-08]
[1758034906227,1.25176986,115370.0,115360.0,1e-08]
[1758034906473,0.64352221,115360.0,115350.0,4e-05]
[1758034906848,1.11895487,115360.0,115350.0,0.00318]
[1758034907007,1.06895487,115360.0,115350.0,0.02668]
[1758034907419,1.06895487,115360.0,115350.0,0.02875]
[1758034907420,1.82995649,115360.0,115350.0,0.02875]
[1758034907890,1.46340649,115360.0,115350.0,0.02875]
[1758034908134,0.22180972,115360.0,115350.0,0.02875]
[1758034908374,1.23523333,115360.0,115350.0,0.02875]
[1758034909078,1.24023333,115360.0,115350.0,0.03075]
[1758034909557,0.85048041,115360.0,115350.0,0.03075]
[1758034909787,1.22401947,115360.0,115350.0,0.03075]
[1758034910047,1.24007907,115360.0,115350.0,0.03075]
[1758034910280,1.23401441,115360.0,115350.0,0.03075]
[1758034910507,0.85642876,115360.0,115350.0,0.03075]
[1758034910726,1.22390034,115360.0,115350.0,0.03075]
[1758034911222,0.49037053,115360.0,115350.0,0.03075]
[1758034911453,0.85784224,115360.0,115350.0,0.03075]
[1758034913067,0.85784224,115360.0,115350.0,0.20413534]
[1758034913068,0.46045863,115360.0,115350.0,0.20413534]
[1758034913270,0.45439031,115360.0,115350.0,0.20413534]
[1758034913964,0.86802241,115360.0,115350.0,0.20423534]
[1758034914584,0.86802241,115360.0,115350.0,0.03085]
[1758034919369,0.89116993,115360.0,115350.0,0.03085]
[1758034920200,0.97444993,115360.0,115350.0,0.03085]
[1758034923988,0.56081783,115360.0,115350.0,0.03085]
[1758034924191,0.97444993,115360.0,115350.0,0.03085]
[1758034925335,1.47458348,115360.0,115350.0,0.00735]
[1758034925542,1.50672538,115360.0,115350.0,0.00421]
[1758034925733,1.50994538,115360.0,115350.0,0.00214]
[1758034926150,1.86074538,115360.0,115350.0,0.00214]
[1758034926363,1.89287466,115360.0,115350.0,0.00214]
[1758034926978,1.89287466,115360.0,115350.0,0.00204]
[1758034927606,1.94287466,115360.0,115350.0,0.00204]
[1758034927815,2.00907495,115360.0,115350.0,0.00204]
[1758034928018,2.0955764,115360.0,115350.0,0.00204]
[1758034928434,2.09557083,115360.0,115350.0,0.00204]
[1758034928844,0.27338534,115350.0,115340.0,0.5]
[1758034929052,1.91434112,115350.0,115340.0,0.5]
[1758034929714,1.91444112,115350.0,115340.0,0.5]
[1758034930135,2.37109447,115350.0,115340.0,1e-08]
[1758034930346,2.37309447,115350.0,115340.0,1e-08]
[1758034930550,1.54591027,115350.0,115340.0,1e-08]
[1758034931166,0.20358235,115320.0,115310.0,0.02801]
[1758034931377,0.89546235,115320.0,115310.0,0.02791]
[1758034931584,0.89546235,115320.0,115310.0,0.03002]
[1758034931796,1.73156374,115320.0,115310.0,0.03002]
[1758034932001,1.75772718,115320.0,115310.0,0.03002]
[1758034932426,1.48236718,115320.0,115310.0,0.03002]
[1758034932642,1.75764718,115320.0,115310.0,0.03002]
[1758034933825,1.75864718,115320.0,115310.0,0.03102]
[1758034934017,1.48336718,115320.0,115310.0,0.03102]
[1758034934228,1.75952718,115320.0,115310.0,0.03402]
[1758034934838,1.76151718,115320.0,115310.0,0.00611]
[1758034935046,1.76151718,115320.0,115310.0,0.03402]
[1758034935259,1.84801863,115320.0,115310.0,0.03091]
[1758034935659,1.84801863,115320.0,115310.0,0.03402]
[1758034936262,1.57086863,115320.0,115310.0,0.03402]
[1758034936881,1.07073508,115320.0,115310.0,0.03402]
[1758034937310,1.34577508,115320.0,115310.0,0.03402]
[1758034937740,1.06189789,115320.0,115310.0,0.03402]
[1758034937945,1.33693789,115320.0,115310.0,0.03402]
[1758034938981,1.06189789,115320.0,115310.0,0.03402]
[1758034939201,1.33689789,115320.0,115310.0,0.03402]
[1758034939844,0.92326579,115320.0,115310.0,0.03402]
[1758034939991,1.33689789,115320.0,115310.0,0.03402]
[1758034940780,1.06189789,115320.0,115310.0,0.03402]
[1758034940974,1.33685789,115320.0,115310.0,0.03402]
[1758034943870,1.33673789,115320.0,115310.0,0.03402]
[1758034944074,1.33669789,115320.0,115310.0,0.03402]
[1758034944280,0.17344549,115310.0,115290.0,0.70350156]
[1758034944499,0.58707759,115310.0,115300.0,0.1755703]
[1758034944643,0.86193759,115310.0,115300.0,0.1755703]
[1758034944868,0.86193759,115310.0,115300.0,0.00211]
[1758034945514,0.44930549,115310.0,115300.0,0.00211]
[1758034945873,0.86293759,115310.0,115300.0,0.00211]
[1758034946351,0.86293759,115310.0,115300.0,0.02934]
[1758034946539,0.86393759,115310.0,115300.0,0.03244]
[1758034946763,0.86492759,115310.0,115300.0,0.00221]
[1758034946984,0.89729949,115310.0,115300.0,0.0001]
[1758034947196,0.92132949,115310.0,115300.0,0.0021]
[1758034947419,0.92232949,115310.0,115300.0,0.0021]
[1758034947855,0.92132949,115310.0,115300.0,0.0021]
[1758034948076,1.33396159,115310.0,115300.0,0.0001]
[1758034948285,0.92132949,115310.0,115300.0,0.0001]
[1758034948490,0.64656949,115310.0,115300.0,0.0001]
[1758034948701,0.92321949,115310.0,115300.0,0.02691]
[1758034949173,0.92928738,115310.0,115300.0,0.02691]
[1758034949386,0.93028738,115310.0,115300.0,0.02791]
[1758034951091,0.93028738,115310.0,115300.0,0.0258]
[1758034951092,0.93350738,115310.0,115300.0,0.0258]
[1758034951245,0.95653738,115310.0,115300.0,0.0258]
[1758034952321,0.97272525,115310.0,115300.0,0.0258]
[1758034952474,1.0592267,115310.0,115300.0,0.0258]
[1758034952887,0.97272525,115310.0,115300.0,0.0258]
[1758034953114,0.97272525,115310.0,115300.0,0.001]
[1758034953480,1.8627588,115310.0,115300.0,0.001]
[1758034953798,1.8627648,115310.0,115300.0,0.001]
[1758034954029,1.9127648,115310.0,115300.0,0.001]
[1758034954231,1.99926625,115310.0,115300.0,0.001]
[1758034954571,0.20362748,115290.0,115280.0,0.00030609]
[1758034954783,1.41427832,115290.0,115280.0,0.00030609]
[1758034954987,1.44242832,115290.0,115280.0,0.00030609]
[1758034955201,1.42632957,115290.0,115280.0,0.00030609]
[1758034955419,0.6152699,115290.0,115280.0,0.00030609]
[1758034955631,1.1418041,115290.0,115280.0,0.02328609]
[1758034955833,1.4196041,115290.0,115280.0,0.02328609]
[1758034957008,1.4205241,115290.0,115280.0,0.02328609]
[1758034957207,1.44659361,115290.0,115280.0,0.02328609]
[1758034957436,1.44659361,115290.0,115280.0,0.02628609]
[1758034957437,1.44759361,115290.0,115280.0,0.02628609]
[1758034957879,1.44759361,115290.0,115280.0,0.00330609]
[1758034958093,1.89702506,115290.0,115280.0,0.00330609]
[1758034958314,1.81052361,115290.0,115280.0,0.00330609]
[1758034959335,1.53280361,115290.0,115280.0,0.00330609]
[1758034959549,1.81044361,115290.0,115280.0,0.00330609]
[1758034959756,1.81044361,115290.0,115280.0,0.02628609]
[1758034961153,1.81040361,115290.0,115280.0,0.02628609]
[1758034961555,1.81028361,115290.0,115280.0,0.02628609]
[1758034962163,1.81028361,115290.0,115280.0,0.00330609]
[1758034962368,1.53280361,115290.0,115280.0,0.00330609]
[1758034962605,1.81020361,115290.0,115280.0,0.00330609]
[1758034964781,1.53280361,115290.0,115280.0,0.00330609]
[1758034965018,0.70553941,115290.0,115280.0,0.02628609]
[1758034965246,1.81004361,115290.0,115280.0,0.02628609]
[1758034967362,1.81004361,115290.0,115280.0,0.00330609]
[1758034967608,2.14348361,115290.0,115280.0,0.00330609]
[1758034968094,2.14348361,115290.0,115280.0,0.02628609]
[1758034968770,2.14349136,115290.0,115280.0,0.02628609]
[1758034969916,2.14349136,115290.0,115280.0,0.00330609]
[1758034973008,2.14349608,115290.0,115280.0,0.00330609]
[1758034973936,1.68445411,115290.0,115280.0,0.00330609]
[1758034974634,1.40721411,115290.0,115280.0,0.00330609]
[1758034974869,1.68385411,115290.0,115280.0,0.02628609]
[1758034975078,1.66092411,115290.0,115280.0,0.02628609]
[1758034975497,1.38428411,115290.0,115280.0,0.02628609]
[1758034975735,1.66092411,115290.0,115280.0,0.02628609]
[1758034977077,1.66095397,115290.0,115280.0,0.02628609]
[1758034977929,1.68410149,115290.0,115280.0,0.02628609]
[1758034978569,1.31587926,115290.0,115280.0,0.02628609]
[1758034978781,1.68410149,115290.0,115280.0,0.02628609]
[1758034980563,1.70735149,115290.0,115280.0,0.02628609]
[1758034981218,1.40224149,115290.0,115280.0,0.00545609]
[1758034981364,1.28022736,115290.0,115280.0,0.03231609]
[1758034981568,1.64844959,115290.0,115280.0,0.03231609]
[1758034982403,1.68381149,115290.0,115280.0,0.00330609]
[1758034982629,1.81161256,115290.0,115280.0,0.00330609]
[1758034982851,1.83486256,115290.0,115280.0,0.00330609]
[1758034983336,1.8348945,115290.0,115280.0,0.00330609]
[1758034983975,1.79359488,115290.0,115280.0,0.00330609]
[1758034984173,1.79259488,115290.0,115280.0,0.00330609]
[1758034984611,1.79359488,115290.0,115280.0,0.00330609]
[1758034984818,1.79259488,115290.0,115280.0,0.00030609]
[1758034985251,1.79259488,115290.0,115280.0,0.00130609]
[1758034985670,1.79359488,115290.0,115280.0,0.00130609]
[1758034986696,1.83369631,115290.0,115280.0,0.00130609]
[1758034987518,1.79359488,115290.0,115280.0,0.00130609]
[1758034991075,1.77732855,115290.0,115280.0,0.00130609]
[1758034991278,1.79360015,115290.0,115280.0,0.00130609]
[1758034991984,1.79308015,115290.0,115280.0,0.00130609]
[1758034992979,1.51724015,115290.0,115280.0,0.00130609]
[1758034993185,1.79292015,115290.0,115280.0,0.00130609]
[1758034993962,1.42469792,115290.0,115280.0,0.00130609]
[1758034994105,1.79292015,115290.0,115280.0,0.02406609]
[1758034994762,1.79292015,115290.0,115280.0,0.02606609]
[1758034994763,1.4022787,115290.0,115280.0,0.02606609]
[1758034994945,1.30969647,115290.0,115280.0,0.02849609]
[1758034995158,1.6779187,115290.0,115280.0,0.02849609]
[1758034995356,1.4022787,115290.0,115280.0,0.02849609]
[1758034995592,1.6778787,115290.0,115280.0,0.02849609]
[1758034995772,1.6778387,115290.0,115280.0,0.02849609]
[1758034996148,1.6778387,115290.0,115280.0,0.02606609]
[1758034996556,1.7692487,115290.0,115280.0,0.02606609]
[1758034996751,1.4022787,115290.0,115280.0,0.02606609]
[1758034996984,1.6778387,115290.0,115280.0,0.02606609]
[1758034997873,1.4022787,115290.0,115280.0,0.02606609]
[1758034998092,1.03405647,115290.0,115280.0,0.02849609]
[1758034998294,1.6776787,115290.0,115280.0,0.02606609]
[1758034998523,1.6776787,115290.0,115280.0,0.02849609]
[1758034999867,0.93318421,115290.0,115280.0,0.02849609]
[1758035000085,0.91691261,115290.0,115280.0,0.02849609]
[1758035000514,0.64155261,115290.0,115280.0,0.02849609]
[1758035000734,0.91691261,115290.0,115280.0,0.20198672]
[1758035000959,0.74339703,115290.0,115280.0,0.57020895]
[1758035001172,0.8908031,115290.0,115280.0,0.20198672]
[1758035002072,0.8908031,115290.0,115280.0,0.02849609]
[1758035002576,0.8908031,115290.0,115280.0,0.20198672]
[1758035003057,0.8908031,115290.0,115280.0,0.20202672]
[1758035005116,1.26408533,115290.0,115280.0,0.00134609]
[1758035005344,1.26408533,115290.0,115280.0,0.02410609]
[1758035005567,1.72073868,115290.0,115280.0,0.00134609]
[1758035005778,1.74558868,115290.0,115280.0,0.00134609]
[1758035005992,1.75168334,115290.0,115280.0,0.00134609]
[1758035006259,2.13963357,115290.0,115280.0,0.00134609]
[1758035006490,1.82141134,115290.0,115280.0,0.00134609]
[1758035007625,1.82141134,115290.0,115280.0,0.00072589]
[1758035008999,1.77141134,115290.0,115280.0,0.00072589]
[1758035009213,1.82141134,115290.0,115280.0,0.00072589]
[1758035010284,1.82141134,115290.0,115260.0,0.023]
[1758035010499,1.82141134,115290.0,115260.0,0.00024]
[1758035010500,0.57187981,115270.0,115260.0,0.00024]
[1758035010723,0.94003592,115270.0,115260.0,0.00024]
[1758035010931,0.96994592,115270.0,115260.0,0.00024]
[1758035011370,0.98992685,115270.0,115260.0,0.00024]
[1758035011609,0.99002685,115270.0,115260.0,0.00024]
[1758035011831,0.96513685,115270.0,115260.0,0.00024]
[1758035012056,0.68754685,115270.0,115260.0,0.027]
[1758035012273,0.96306685,115270.0,115260.0,0.027]
[1758035012489,0.96310685,115270.0,115260.0,0.027]
[1758035012728,0.47624127,115270.0,115260.0,0.027]
[1758035012949,0.85418972,115270.0,115260.0,0.027]
[1758035014485,0.85629972,115270.0,115260.0,0.027]
[1758035014889,0.85418972,115270.0,115260.0,0.027]
[1758035015123,0.85629972,115270.0,115260.0,0.027]
[1758035015348,0.85944972,115270.0,115260.0,0.025]
[1758035017202,0.85944972,115270.0,115260.0,0.02707]
[1758035017717,0.48807749,115270.0,115260.0,0.02707]
[1758035017928,0.49122749,115270.0,115260.0,0.02707]
[1758035018141,0.85944972,115270.0,115260.0,0.02707]
[1758035018931,0.21566749,115270.0,115260.0,0.02707]
[1758035019156,0.85948972,115270.0,115260.0,0.02707]
[1758035019783,0.85633972,115270.0,115260.0,0.02707]
[1758035020655,0.85948972,115270.0,115260.0,0.02707]
[1758035020867,0.85944972,115270.0,115260.0,0.02707]
[1758035021286,0.58388972,115270.0,115260.0,0.02707]
[1758035021497,0.85629972,115270.0,115260.0,0.02707]
[1758035021955,0.58388972,115270.0,115260.0,0.02707]
[1758035022170,0.85944972,115270.0,115260.0,0.02707]
[1758035022610,0.49122749,115270.0,115260.0,0.02707]
[1758035022754,0.85944972,115270.0,115260.0,0.02707]
[1758035023473,0.20168127,115270.0,115260.0,0.0295]
[1758035023683,0.47716127,115270.0,115260.0,0.0295]
[1758035024104,0.20168127,115270.0,115260.0,0.0296]
[1758035024313,0.47716127,115270.0,115260.0,0.0296]
[1758035025576,0.47716127,115270.0,115260.0,0.20312073]
[1758035025793,0.47716127,115270.0,115260.0,0.0296]
[1758035026005,0.47716127,115270.0,115260.0,0.20312073]
[1758035026209,0.47724127,115270.0,115260.0,0.20312073]
[1758035026430,0.47724127,115270.0,115260.0,0.0296]
[1758035028178,0.20168127,115270.0,115260.0,0.0296]
[1758035028379,0.47712127,115270.0,115260.0,0.0296]
[1758035032944,0.45104568,115270.0,115260.0,0.11610145]
[1758035033151,0.45104568,115270.0,115260.0,0.28962218]
[1758035033594,0.17560568,115270.0,115260.0,0.68962218]
[1758035033744,0.45080568,115270.0,115260.0,0.68962218]
[1758035034570,0.45076568,115270.0,115260.0,0.68962218]
[1758035034999,0.45076568,115270.0,115260.0,1.05784441]
[1758035035405,0.45076568,115270.0,115260.0,0.51610145]
[1758035035867,0.45076568,115270.0,115260.0,0.93032002]
[1758035036208,0.45120568,115270.0,115260.0,0.93032002]
[1758035036671,0.17560568,115270.0,115260.0,0.93032002]
[1758035036907,0.45124568,115270.0,115260.0,0.93032002]
[1758035037538,0.86546425,115270.0,115260.0,0.02717]
[1758035037742,0.86757425,115270.0,115260.0,0.02717]
[1758035038357,0.45335568,115270.0,115260.0,0.02717]
[1758035038596,0.86757425,115270.0,115260.0,0.02717]
[1758035038808,0.87072425,115270.0,115260.0,0.02717]
[1758035039023,0.95408425,115270.0,115260.0,0.02717]
[1758035039431,0.53986568,115270.0,115260.0,0.02717]
[1758035039646,0.95408425,115270.0,115260.0,0.02717]
[1758035040027,0.95093425,115270.0,115260.0,0.02717]
[1758035041130,0.53460568,115270.0,115260.0,0.02717]
[1758035041583,0.53432568,115270.0,115260.0,0.44381857]
[1758035042016,0.53432568,115270.0,115260.0,0.0296]
[1758035042212,0.53428568,115270.0,115260.0,0.44381857]
[1758035043501,0.25896568,115270.0,115260.0,0.70384075]
[1758035043720,0.53420568,115270.0,115260.0,0.53032002]
[1758035043939,0.86768568,115270.0,115260.0,0.53032002]
[1758035044160,0.86768568,115270.0,115260.0,0.28962218]
[1758035044380,0.86768568,115270.0,115260.0,0.53032002]
[1758035044617,0.86768568,115270.0,115260.0,0.11610145]
[1758035044841,0.86768568,115270.0,115260.0,0.53032002]
[1758035046238,0.86768568,115270.0,115260.0,0.11610145]
[1758035046460,0.86768568,115270.0,115260.0,0.11367145]
[1758035047168,0.87286568,115270.0,115260.0,0.08884145]
[1758035047403,1.31080425,115270.0,115260.0,0.08884145]
[1758035048043,1.28708425,115270.0,115260.0,0.11148145]
[1758035048745,1.28708425,115270.0,115260.0,0.11349145]
[1758035049492,1.28708425,115270.0,115260.0,0.00234]
[1758035049728,1.31080425,115270.0,115260.0,0.00234]
[1758035049955,2.06502282,115270.0,115260.0,0.00234]
[1758035050196,2.09517472,115270.0,115260.0,0.00234]
[1758035050407,2.20404428,115270.0,115260.0,0.00224]
[1758035050650,2.20752103,115270.0,115260.0,0.00224]
[1758035050867,2.29402248,115270.0,115260.0,0.00224]
[1758035051147,2.29302248,115270.0,115260.0,0.00224]
[1758035051603,2.29402248,115270.0,115260.0,0.00224]
[1758035051861,2.29302248,115270.0,115260.0,0.00024]
[1758035052080,2.29202248,115270.0,115260.0,0.00024]
[1758035052300,2.29402248,115270.0,115260.0,0.00124]
[1758035055299,2.29378248,115270.0,115260.0,0.00124]
[1758035055795,2.29378248,115270.0,115260.0,1e-08]
[1758035055998,2.34378248,115270.0,115260.0,1e-08]
[1758035058160,2.39378248,115270.0,115260.0,1e-08]
[1758035058376,2.11878248,115270.0,115260.0,1e-08]
[1758035058517,2.39365159,115270.0,115260.0,1e-08]
[1758035058734,2.11877159,115270.0,115260.0,1e-08]
[1758035058961,2.39365159,115270.0,115260.0,1e-08]
[1758035059389,2.11877159,115270.0,115260.0,1e-08]
[1758035059628,0.59367263,115260.0,115250.0,0.0002]
[1758035059845,1.89226989,115260.0,115250.0,0.0002]
[1758035059973,1.64646989,115260.0,115250.0,0.0002]
[1758035060205,1.92126989,115260.0,115250.0,0.0002]
[1758035060418,1.80764844,115260.0,115250.0,0.0002]
[1758035061035,1.81060844,115260.0,115250.0,0.0002]
[1758035061269,1.53584844,115260.0,115250.0,0.0002]
[1758035061499,1.81060844,115260.0,115250.0,0.0002]
[1758035061699,1.81056844,115260.0,115250.0,0.0002]
[1758035061908,1.53584844,115260.0,115250.0,0.0002]
[1758035062109,1.53584404,115260.0,115250.0,0.0002]
[1758035062325,1.53284404,115260.0,115250.0,0.0002]
[1758035062533,1.80856404,115260.0,115250.0,0.0002]
[1758035063160,2.14308404,115260.0,115250.0,0.0002]
[1758035063369,2.22958549,115260.0,115250.0,0.0002]
[1758035064221,2.14308404,115260.0,115250.0,0.0002]
[1758035068523,2.14280404,115260.0,115250.0,0.0002]
[1758035069380,1.3143669,115260.0,115250.0,0.0002]
[1758035069541,2.14280404,115260.0,115250.0,0.0002]
[1758035075849,2.14280729,115260.0,115250.0,0.0002]
[1758035079896,2.12653933,115260.0,115250.0,0.0002]
[1758035080107,1.84464925,115260.0,115250.0,0.0002]
[1758035080324,2.11868925,115260.0,115250.0,0.02293]
[1758035080550,1.29025211,115260.0,115250.0,0.02293]
[1758035080757,2.11868925,115260.0,115250.0,0.02293]
[1758035083833,2.14318925,115260.0,115250.0,0.0002]
[1758035084005,2.1431942,115260.0,115250.0,0.0002]
[1758035084181,2.22969565,115260.0,115250.0,0.0002]
[1758035084385,2.22969565,115260.0,115250.0,1e-08]
[1758035084386,2.72020734,115260.0,115250.0,1e-08]
[1758035084612,2.77020734,115260.0,115250.0,1e-08]
[1758035085036,2.35598877,115260.0,115250.0,1e-08]
[1758035085697,2.35498877,115260.0,115250.0,1e-08]
[1758035085948,2.35398877,115260.0,115250.0,1e-08]
[1758035086145,1.47212483,115250.0,115240.0,1e-08]
[1758035086355,1.94149071,115250.0,115240.0,1e-08]
[1758035086706,1.97122071,115250.0,115240.0,1e-08]
[1758035086954,1.97469868,115250.0,115240.0,1e-08]
[1758035087399,1.97479868,115250.0,115240.0,1e-08]
[1758035087839,1.97480301,115250.0,115240.0,1e-08]
[1758035088556,1.97492301,115250.0,115240.0,1e-08]
[1758035088895,0.27355085,115240.0,115230.0,1e-08]
[1758035089110,1.4109101,115240.0,115230.0,1e-08]
[1758035089308,1.4406401,115240.0,115230.0,1e-08]
[1758035089516,1.7148201,115240.0,115230.0,1e-08]
[1758035089901,1.4407401,115240.0,115230.0,1e-08]
[1758035090145,1.7149001,115240.0,115230.0,1e-08]
[1758035090503,1.7169001,115240.0,115230.0,1e-08]
[1758035091325,1.4427401,115240.0,115230.0,1e-08]
[1758035091530,1.44764865,115240.0,115230.0,1e-08]
[1758035091762,1.72176865,115240.0,115230.0,1e-08]
[1758035092026,1.44764865,115240.0,115230.0,1e-08]
[1758035092187,1.74265865,115240.0,115230.0,1e-08]
[1758035092388,1.74465865,115240.0,115230.0,1e-08]
[1758035092594,1.47355716,115240.0,115230.0,1e-08]
[1758035092808,1.51005861,115240.0,115230.0,1e-08]
[1758035093009,1.82913861,115240.0,115230.0,1e-08]
[1758035093235,1.56105861,115240.0,115230.0,1e-08]
[1758035093444,1.16846859,115240.0,115230.0,0.00206001]
[1758035093648,1.19296859,115240.0,115230.0,1e-08]
[1758035093848,1.60718716,115240.0,115230.0,1e-08]
[1758035094472,1.65718716,115240.0,115230.0,1e-08]
[1758035095556,1.65728768,115240.0,115230.0,1e-08]
[1758035095798,1.21856911,115240.0,115230.0,0.02479001]
[1758035096017,1.21856911,115240.0,115230.0,0.02273001]
[1758035096420,1.21856911,115240.0,115230.0,1e-08]
[1758035096631,1.24306911,115240.0,115230.0,1e-08]
[1758035097263,1.19306911,115240.0,115230.0,1e-08]
[1758035097416,1.32957056,115240.0,115230.0,1e-08]
[1758035098000,1.61759771,115240.0,115230.0,1e-08]
[1758035098263,1.50659558,115240.0,115230.0,1e-08]
[1758035098470,1.45340558,115240.0,115230.0,0.02479001]
[1758035101280,1.40340558,115240.0,115230.0,0.02479001]
[1758035101688,1.03271806,115240.0,115230.0,0.02479001]
[1758035101881,1.40336558,115240.0,115230.0,0.02479001]
[1758035102311,1.45659558,115240.0,115230.0,0.02479001]
[1758035102724,1.40659558,115240.0,115230.0,0.02479001]
[1758035103060,1.4033652,115240.0,115230.0,0.02479001]
[1758035103663,1.4013252,115240.0,115230.0,0.02479001]
[1758035104071,1.4013252,115240.0,115230.0,0.02722001]
[1758035104702,1.4012452,115240.0,115230.0,0.02722001]
[1758035104903,1.4012452,115240.0,115230.0,0.02479001]
[1758035105113,1.45124591,115240.0,115230.0,0.02479001]
[1758035105537,1.40124591,115240.0,115230.0,0.02479001]
[1758035105932,0.74236323,115240.0,115230.0,0.00206001]
[1758035106132,0.94606154,115240.0,115230.0,0.02473001]
[1758035106344,1.65466906,115240.0,115230.0,0.02716001]
[1758035106554,1.31466906,115240.0,115230.0,0.02716001]
[1758035106777,1.65466906,115240.0,115230.0,0.02716001]
[1758035106976,1.65466906,115240.0,115230.0,0.02473001]
[1758035107226,1.69642641,115240.0,115230.0,0.02473001]
[1758035107420,1.69438641,115240.0,115230.0,0.02473001]
[1758035108480,1.69955641,115240.0,115230.0,1e-08]
[1758035108681,2.17938538,115240.0,115230.0,1e-08]
[1758035109302,1.44217744,115240.0,115230.0,1e-08]
[1758035109513,2.17939248,115240.0,115230.0,1e-08]
[1758035109947,2.17939343,115240.0,115230.0,1e-08]
[1758035110360,1.81078591,115240.0,115230.0,1e-08]
[1758035113742,1.81080242,115240.0,115230.0,1e-08]
[1758035114092,1.77108507,115240.0,115230.0,1e-08]
[1758035114425,2.10472507,115240.0,115230.0,1e-08]
[1758035115043,1.80087507,115240.0,115230.0,0.02472001]
[1758035115268,2.07507507,115240.0,115230.0,0.02472001]
[1758035115945,1.80087507,115240.0,115230.0,0.02472001]
[1758035116326,2.07707507,115240.0,115230.0,0.02267001]
[1758035116554,2.08020507,115240.0,115230.0,0.00205001]
[1758035116734,2.07707507,115240.0,115230.0,0.02472001]
[1758035116929,2.07503507,115240.0,115230.0,0.02472001]
[1758035117918,1.70642755,115240.0,115230.0,0.02472001]
[1758035118092,2.16153652,115240.0,115230.0,0.02472001]
[1758035118308,2.07503507,115240.0,115230.0,0.02472001]
[1758035118966,1.70642755,115240.0,115230.0,0.02472001]
[1758035119199,2.07503507,115240.0,115230.0,0.02472001]
[1758035119613,1.70642755,115240.0,115230.0,0.02472001]
[1758035119993,2.07503507,115240.0,115230.0,0.02472001]
[1758035121067,1.70512131,115240.0,115230.0,0.02472001]
[1758035121271,1.79956883,115240.0,115230.0,0.02472001]
[1758035121689,2.07348883,115240.0,115230.0,0.02472001]
[1758035122753,1.70488131,115240.0,115230.0,0.02472001]
[1758035122962,2.07348883,115240.0,115230.0,0.02472001]
[1758035123142,2.07552883,115240.0,115230.0,0.02472001]
[1758035123552,2.07865883,115240.0,115230.0,0.02472001]
[1758035124327,1.71005131,115240.0,115230.0,0.02472001]
[1758035124544,2.07867081,115240.0,115230.0,0.02472001]
[1758035125111,2.07554081,115240.0,115230.0,0.02472001]
[1758035125722,2.07867081,115240.0,115230.0,0.02472001]
[1758035125928,2.0786711,115240.0,115230.0,0.02472001]
[1758035126118,2.07867928,115240.0,115230.0,0.02472001]
[1758035132309,2.07867928,115240.0,115230.0,0.02715001]
[1758035132310,1.31432841,115240.0,115230.0,0.02715001]
[1758035132523,0.97432841,115240.0,115230.0,0.02715001]
[1758035132722,1.24796841,115240.0,115230.0,0.02715001]
[1758035133496,1.24186647,115240.0,115230.0,0.02715001]
[1758035133707,0.89195461,115240.0,115230.0,0.02715001]
[1758035134524,0.88895461,115240.0,115230.0,0.02715001]
[1758035135096,0.88695461,115240.0,115230.0,0.02715001]
[1758035135305,0.80452361,115240.0,115230.0,0.02715001]
[1758035135901,0.80452361,115240.0,115230.0,0.20071592]
[1758035136089,0.80552361,115240.0,115230.0,0.20271592]
[1758035136649,0.78259361,115240.0,115230.0,0.20271592]